[Event "*** SCC Grand Prix: Titled Tuesday Blitz"]
[Site "Chess.com"]
[Date "2020.07.14"]
[Round "3"]
[White "AlexSuv"]
[Black "Tolya2"]
[Result "0-1"]
[WhiteElo "2551"]
[BlackElo "2401"]
[TimeControl "180+1"]
[EndTime "10:29:34 PDT"]
[Termination "Tolya2 won by resignation"]

1. d4 {[%clk 0:03:00.9]} 1... d5 {[%clk 0:02:59.2]} 2. c4 {[%clk 0:03:00.6]}
2... dxc4 {[%clk 0:02:59.3]} 3. Nf3 {[%clk 0:03:00.1]} 3... a6 {[%clk
0:02:57.8]} 4. e3 {[%clk 0:02:57.6]} 4... Nf6 {[%clk 0:02:57.6]} 5. Bxc4 {[%clk
0:02:56.9]} 5... e6 {[%clk 0:02:58.3]} 6. O-O {[%clk 0:02:56.4]} 6... c5 {[%clk
0:02:59.1]} 7. Qe2 {[%clk 0:02:55.4]} 7... b5 {[%clk 0:02:59]} 8. Bb3 {[%clk
0:02:55.6]} 8... Bb7 {[%clk 0:02:58.8]} 9. Rd1 {[%clk 0:02:54.5]} 9... Nbd7
{[%clk 0:02:58.7]} 10. a4 {[%clk 0:02:48.2]} 10... b4 {[%clk 0:02:42.3]} 11.
Nbd2 {[%clk 0:02:28.3]} 11... Bd6 {[%clk 0:02:35.3]} 12. Nc4 {[%clk 0:02:26.4]}
12... Qe7 {[%clk 0:02:26.2]} 13. Nxd6+ {[%clk 0:02:08.6]} 13... Qxd6 {[%clk
0:02:25.4]} 14. dxc5 {[%clk 0:02:08.6]} 14... Qxc5 {[%clk 0:02:25.4]} 15. Bd2
{[%clk 0:02:09.4]} 15... a5 {[%clk 0:02:20.4]} 16. Rac1 {[%clk 0:02:07.6]} 16...
Qb6 {[%clk 0:02:19.9]} 17. Nd4 {[%clk 0:02:00.7]} 17... O-O {[%clk 0:02:16.3]}
18. Nb5 {[%clk 0:01:51.9]} 18... Rac8 {[%clk 0:02:12.3]} 19. f3 {[%clk
0:01:49.3]} 19... Nc5 {[%clk 0:02:10]} 20. Bc2 {[%clk 0:01:00.7]} 20... b3
{[%clk 0:02:05.6]} 21. Bd3 {[%clk 0:00:47.7]} 21... Nxd3 {[%clk 0:01:57.6]} 22.
Qxd3 {[%clk 0:00:46.4]} 22... Ba6 {[%clk 0:01:57.3]} 23. Bc3 {[%clk 0:00:41.4]}
23... Nd5 {[%clk 0:01:53.9]} 24. Bd4 {[%clk 0:00:40.8]} 24... Qb8 {[%clk
0:01:46.1]} 25. Qxb3 {[%clk 0:00:40.6]} 25... h6 {[%clk 0:01:38.4]} 26. e4
{[%clk 0:00:39.4]} 26... Nf4 {[%clk 0:01:37.5]} 27. Qe3 {[%clk 0:00:36.4]} 27...
Ng6 {[%clk 0:01:25.8]} 28. Qe2 {[%clk 0:00:32.3]} 28... Nf4 {[%clk 0:01:21.2]}
29. Qf1 {[%clk 0:00:32.3]} 29... Rfd8 {[%clk 0:01:17.1]} 30. Be3 {[%clk
0:00:31.8]} 30... Ng6 {[%clk 0:01:15.3]} 31. Rxd8+ {[%clk 0:00:24.3]} 31... Rxd8
{[%clk 0:01:14.2]} 32. Qc4 {[%clk 0:00:22.9]} 32... Rc8 {[%clk 0:01:09.2]} 33.
Bc5 {[%clk 0:00:13.4]} 33... Ne5 {[%clk 0:01:05.2]} 34. Qf1 {[%clk 0:00:13.5]}
34... Nd7 {[%clk 0:00:59.9]} 35. Bd6 {[%clk 0:00:13.1]} 35... Rxc1 {[%clk
0:00:54.4]} 36. Qxc1 {[%clk 0:00:13.4]} 36... Qb6+ {[%clk 0:00:53.4]} 37. Kh1
{[%clk 0:00:07.3]} 37... Bxb5 {[%clk 0:00:53.4]} 38. Bc7 {[%clk 0:00:07.3]}
38... Qc6 {[%clk 0:00:50.6]} 39. Qxc6 {[%clk 0:00:07.3]} 39... Bxc6 {[%clk
0:00:49.9]} 40. Bxa5 {[%clk 0:00:07.6]} 40... Bxa4 {[%clk 0:00:49.8]} 41. Bc3
{[%clk 0:00:07.1]} 41... f6 {[%clk 0:00:48.8]} 42. Kg1 {[%clk 0:00:08]} 42... e5
{[%clk 0:00:48.8]} 43. Kf2 {[%clk 0:00:08.9]} 43... Kf7 {[%clk 0:00:48.9]} 44.
Ke3 {[%clk 0:00:09.6]} 44... Ke6 {[%clk 0:00:48.6]} 45. Bb4 {[%clk 0:00:09.9]}
45... Bb5 {[%clk 0:00:48.2]} 46. g4 {[%clk 0:00:08.3]} 46... g6 {[%clk
0:00:47.3]} 47. h4 {[%clk 0:00:08.4]} 47... h5 {[%clk 0:00:47.5]} 48. gxh5
{[%clk 0:00:07.4]} 48... gxh5 {[%clk 0:00:47.3]} 49. Ba3 {[%clk 0:00:07.3]}
49... Nb6 {[%clk 0:00:43.3]} 50. b3 {[%clk 0:00:07.8]} 50... Ba6 {[%clk
0:00:39.8]} 51. Bc5 {[%clk 0:00:07.5]} 51... Nd7 {[%clk 0:00:38.2]} 52. Ba7
{[%clk 0:00:07.6]} 52... Kd6 {[%clk 0:00:37.5]} 53. b4 {[%clk 0:00:05.8]} 53...
Kc6 {[%clk 0:00:36.6]} 54. f4 {[%clk 0:00:04.4]} 54... Kb5 {[%clk 0:00:27.4]}
55. fxe5 {[%clk 0:00:04.7]} 55... fxe5 {[%clk 0:00:26.9]} 56. Kf3 {[%clk
0:00:02.3]} 56... Kxb4 {[%clk 0:00:26.8]} 57. Be3 {[%clk 0:00:02.4]} 57... Kc4
{[%clk 0:00:25.8]} 58. Bc1 {[%clk 0:00:01.1]} 58... Kd3 {[%clk 0:00:25.5]} 59.
Bb2 {[%clk 0:00:01.2]} 59... Bb7 {[%clk 0:00:25.1]} 0-1

[Event "*** SCC Grand Prix: Titled Tuesday Blitz"]
[Site "Chess.com"]
[Date "2020.07.14"]
[Round "3"]
[White "brunoo2003"]
[Black "tlomigtlis"]
[Result "0-1"]
[WhiteElo "2210"]
[BlackElo "2425"]
[TimeControl "180+1"]
[EndTime "10:29:35 PDT"]
[Termination "tlomigtlis won by resignation"]

1. e4 {[%clk 0:02:57.6]} 1... c5 {[%clk 0:03:00]} 2. Nf3 {[%clk 0:02:57.5]} 2...
d6 {[%clk 0:03:00.3]} 3. d4 {[%clk 0:02:57.9]} 3... cxd4 {[%clk 0:03:01.2]} 4.
Nxd4 {[%clk 0:02:58.8]} 4... Nf6 {[%clk 0:03:01.8]} 5. Nc3 {[%clk 0:02:59.3]}
5... a6 {[%clk 0:03:02.4]} 6. Bd3 {[%clk 0:02:59.9]} 6... e5 {[%clk 0:03:01.1]}
7. Nf5 {[%clk 0:03:00.3]} 7... Nc6 {[%clk 0:02:58]} 8. Bg5 {[%clk 0:02:56.7]}
8... h6 {[%clk 0:02:55.9]} 9. Bxf6 {[%clk 0:02:54.1]} 9... Qxf6 {[%clk
0:02:55.1]} 10. Nd5 {[%clk 0:02:53.7]} 10... Qd8 {[%clk 0:02:55.1]} 11. Nfe3
{[%clk 0:02:53.8]} 11... Be6 {[%clk 0:02:53.2]} 12. O-O {[%clk 0:02:51.9]} 12...
g6 {[%clk 0:02:53.3]} 13. Bc4 {[%clk 0:02:50.1]} 13... Bg7 {[%clk 0:02:53.1]}
14. Bb3 {[%clk 0:02:50.3]} 14... O-O {[%clk 0:02:52.9]} 15. a4 {[%clk
0:02:50.2]} 15... Rc8 {[%clk 0:02:48.3]} 16. c3 {[%clk 0:02:48.3]} 16... Kh8
{[%clk 0:02:38.3]} 17. Qd3 {[%clk 0:02:42.6]} 17... f5 {[%clk 0:02:37]} 18. Rad1
{[%clk 0:02:28.9]} 18... f4 {[%clk 0:02:36]} 19. Nc2 {[%clk 0:02:28.3]} 19...
Rg8 {[%clk 0:02:28.5]} 20. f3 {[%clk 0:02:17.9]} 20... g5 {[%clk 0:02:28.4]} 21.
Bc4 {[%clk 0:02:03.4]} 21... h5 {[%clk 0:02:10.4]} 22. Kf2 {[%clk 0:01:28.2]}
22... g4 {[%clk 0:02:08.5]} 23. Ke2 {[%clk 0:01:28.3]} 23... Qh4 {[%clk
0:02:05.8]} 24. Kd2 {[%clk 0:01:13.4]} 24... gxf3 {[%clk 0:01:59.1]} 25. gxf3
{[%clk 0:01:11.5]} 25... Bf8 {[%clk 0:01:55]} 26. Kc1 {[%clk 0:01:10.5]} 26...
Rg2 {[%clk 0:01:52.6]} 27. Rg1 {[%clk 0:01:05.9]} 27... Qf2 {[%clk 0:01:35.3]}
28. Rxg2 {[%clk 0:00:50]} 28... Qxg2 {[%clk 0:01:36.2]} 29. Qf1 {[%clk
0:00:45.9]} 29... Qxh2 {[%clk 0:01:32.7]} 30. Qh1 {[%clk 0:00:41.7]} 30... Qxh1
{[%clk 0:01:26.3]} 31. Rxh1 {[%clk 0:00:42.6]} 31... Bf7 {[%clk 0:01:26.2]} 32.
Nb6 {[%clk 0:00:42.4]} 32... Rc7 {[%clk 0:01:17.5]} 33. Bxf7 {[%clk 0:00:42.4]}
33... Rxf7 {[%clk 0:01:18.4]} 34. Rxh5+ {[%clk 0:00:42.6]} 34... Rh7 {[%clk
0:01:18.3]} 35. Rxh7+ {[%clk 0:00:41.2]} 35... Kxh7 {[%clk 0:01:19.2]} 36. Kd2
{[%clk 0:00:40.8]} 36... Kg6 {[%clk 0:01:16.5]} 37. Nd5 {[%clk 0:00:35.2]} 37...
Kh5 {[%clk 0:01:14.5]} 38. Ncb4 {[%clk 0:00:32.2]} 38... Na5 {[%clk 0:01:08.9]}
39. Kd3 {[%clk 0:00:27.9]} 39... Kh4 {[%clk 0:01:05]} 40. Nc2 {[%clk 0:00:27.7]}
40... Kg3 {[%clk 0:01:04.6]} 41. b4 {[%clk 0:00:19.5]} 41... Nb3 {[%clk
0:01:01.4]} 42. b5 {[%clk 0:00:18.7]} 42... axb5 {[%clk 0:00:58.4]} 43. axb5
{[%clk 0:00:19.6]} 43... Kxf3 {[%clk 0:00:56.6]} 44. Nf6 {[%clk 0:00:19.8]}
44... Kg3 {[%clk 0:00:46.7]} 45. Nh5+ {[%clk 0:00:17]} 45... Kg4 {[%clk
0:00:45.9]} 46. Nf6+ {[%clk 0:00:16.6]} 46... Kh4 {[%clk 0:00:46.1]} 47. Nd7
{[%clk 0:00:16.4]} 47... Bh6 {[%clk 0:00:43.3]} 48. Ne1 {[%clk 0:00:16.6]} 48...
Kg3 {[%clk 0:00:42.2]} 49. Nf6 {[%clk 0:00:15.3]} 49... f3 {[%clk 0:00:40.7]}
50. Nh5+ {[%clk 0:00:15.5]} 50... Kf2 {[%clk 0:00:40.6]} 51. Nc2 {[%clk
0:00:14.5]} 51... Nc1+ {[%clk 0:00:29.9]} 52. Kc4 {[%clk 0:00:14.1]} 52... Ke2
{[%clk 0:00:30.1]} 53. Kd5 {[%clk 0:00:12.9]} 53... f2 {[%clk 0:00:29.5]} 54.
Kxd6 {[%clk 0:00:13.4]} 54... Bf4 {[%clk 0:00:27.7]} 55. Nd4+ {[%clk 0:00:10.7]}
55... exd4+ {[%clk 0:00:24.3]} 56. Nxf4+ {[%clk 0:00:11.2]} 56... Kf3 {[%clk
0:00:24.8]} 57. e5 {[%clk 0:00:08.8]} 57... f1=Q {[%clk 0:00:24.9]} 58. e6
{[%clk 0:00:09.7]} 58... Kxf4 {[%clk 0:00:24.7]} 59. e7 {[%clk 0:00:10.6]} 59...
Qxb5 {[%clk 0:00:24.6]} 60. cxd4 {[%clk 0:00:09.6]} 60... Qe8 {[%clk 0:00:24.5]}
61. d5 {[%clk 0:00:10.5]} 61... Ke4 {[%clk 0:00:23.4]} 62. Ke6 {[%clk
0:00:11.4]} 62... Nd3 {[%clk 0:00:22]} 63. d6 {[%clk 0:00:12.3]} 63... Nc5+
{[%clk 0:00:22.8]} 64. Kf6 {[%clk 0:00:12]} 64... Kd5 {[%clk 0:00:20.4]} 0-1

[Event "*** SCC Grand Prix: Titled Tuesday Blitz"]
[Site "Chess.com"]
[Date "2020.07.14"]
[Round "3"]
[White "731291"]
[Black "David_Paravyan"]
[Result "0-1"]
[WhiteElo "2657"]
[BlackElo "2947"]
[TimeControl "180+1"]
[EndTime "10:29:36 PDT"]
[Termination "David_Paravyan won on time"]

1. d4 {[%clk 0:03:00.9]} 1... Nf6 {[%clk 0:02:57.1]} 2. Nf3 {[%clk 0:03:00.6]}
2... d5 {[%clk 0:02:49.1]} 3. c4 {[%clk 0:03:00.4]} 3... e6 {[%clk 0:02:49.7]}
4. g3 {[%clk 0:03:00.5]} 4... Be7 {[%clk 0:02:45.8]} 5. Bg2 {[%clk 0:03:00.4]}
5... O-O {[%clk 0:02:46.5]} 6. O-O {[%clk 0:03:00.9]} 6... dxc4 {[%clk
0:02:47.1]} 7. Qc2 {[%clk 0:03:00.9]} 7... a6 {[%clk 0:02:45.2]} 8. a4 {[%clk
0:03:00.9]} 8... Bd7 {[%clk 0:02:45.2]} 9. Rd1 {[%clk 0:03:00.7]} 9... Bc6
{[%clk 0:02:42.9]} 10. Nc3 {[%clk 0:03:00.6]} 10... Bb4 {[%clk 0:02:23.8]} 11.
Bg5 {[%clk 0:02:59.4]} 11... h6 {[%clk 0:02:23.6]} 12. Bxf6 {[%clk 0:02:55.7]}
12... Qxf6 {[%clk 0:02:24.5]} 13. e4 {[%clk 0:02:48.1]} 13... Qe7 {[%clk
0:01:14.4]} 14. Ne5 {[%clk 0:02:42.8]} 14... Nd7 {[%clk 0:01:11.6]} 15. Nxc6
{[%clk 0:02:33.8]} 15... bxc6 {[%clk 0:01:12.5]} 16. Qe2 {[%clk 0:02:26.1]}
16... c5 {[%clk 0:01:09.5]} 17. Qxc4 {[%clk 0:02:14.1]} 17... Nb6 {[%clk
0:01:09.1]} 18. Qe2 {[%clk 0:02:07.9]} 18... cxd4 {[%clk 0:01:05.6]} 19. Rxd4
{[%clk 0:02:08.7]} 19... a5 {[%clk 0:00:56.7]} 20. e5 {[%clk 0:01:43.3]} 20...
Rad8 {[%clk 0:00:44.3]} 21. Rad1 {[%clk 0:01:43.1]} 21... Rxd4 {[%clk
0:00:39.6]} 22. Rxd4 {[%clk 0:01:44]} 22... Rd8 {[%clk 0:00:38]} 23. Qd3 {[%clk
0:01:39.7]} 23... Rxd4 {[%clk 0:00:37.3]} 24. Qxd4 {[%clk 0:01:40.6]} 24... Bxc3
{[%clk 0:00:14.7]} 25. bxc3 {[%clk 0:01:39.4]} 25... Qd7 {[%clk 0:00:14.5]} 26.
Qxd7 {[%clk 0:01:17.9]} 26... Nxd7 {[%clk 0:00:15.4]} 27. f4 {[%clk 0:01:18.8]}
27... Kf8 {[%clk 0:00:13]} 28. Kf2 {[%clk 0:01:18.7]} 28... Ke7 {[%clk
0:00:10.2]} 29. Ke3 {[%clk 0:01:11.5]} 29... f6 {[%clk 0:00:10.7]} 30. exf6+
{[%clk 0:01:02.2]} 30... gxf6 {[%clk 0:00:10.1]} 31. g4 {[%clk 0:00:58.2]} 31...
Kd6 {[%clk 0:00:08.4]} 32. h4 {[%clk 0:00:48.5]} 32... Nc5 {[%clk 0:00:08.7]}
33. g5 {[%clk 0:00:44]} 33... fxg5 {[%clk 0:00:09.6]} 34. fxg5 {[%clk
0:00:42.7]} 34... hxg5 {[%clk 0:00:10.5]} 35. hxg5 {[%clk 0:00:33.2]} 35... Nxa4
{[%clk 0:00:10.8]} 36. g6 {[%clk 0:00:21.5]} 36... Ke7 {[%clk 0:00:09.8]} 37.
Kd4 {[%clk 0:00:21.7]} 37... Kf6 {[%clk 0:00:08.9]} 38. Be4 {[%clk 0:00:21.4]}
38... Nb6 {[%clk 0:00:02.4]} 39. Kc5 {[%clk 0:00:20.2]} 39... a4 {[%clk
0:00:03.1]} 40. Kc6 {[%clk 0:00:17.6]} 40... a3 {[%clk 0:00:02.6]} 41. Bb1
{[%clk 0:00:17.3]} 41... Nd5 {[%clk 0:00:03.1]} 42. Ba2 {[%clk 0:00:01.4]} 42...
Nxc3 {[%clk 0:00:03.4]} 43. g7 {[%clk 0:00:01.4]} 43... Kxg7 {[%clk 0:00:03.2]}
44. Bxe6 {[%clk 0:00:01.9]} 44... Kf6 {[%clk 0:00:02.1]} 45. Bb3 {[%clk
0:00:01.8]} 45... Ke5 {[%clk 0:00:02.6]} 46. Kxc7 {[%clk 0:00:02.1]} 46... Kd4
{[%clk 0:00:03.1]} 47. Kb6 {[%clk 0:00:01.7]} 47... Ne4 {[%clk 0:00:02.2]} 48.
Ka5 {[%clk 0:00:01.5]} 48... Kc3 {[%clk 0:00:02.9]} 49. Bd5 {[%clk 0:00:01.5]}
49... Kb2 {[%clk 0:00:02.6]} 0-1

[Event "*** SCC Grand Prix: Titled Tuesday Blitz"]
[Site "Chess.com"]
[Date "2020.07.14"]
[Round "3"]
[White "FMJoseHerrera"]
[Black "ValentinDragnev"]
[Result "1-0"]
[WhiteElo "2481"]
[BlackElo "2702"]
[TimeControl "180+1"]
[EndTime "10:29:39 PDT"]
[Termination "FMJoseHerrera won by resignation"]

1. Nf3 {[%clk 0:03:00.9]} 1... d5 {[%clk 0:02:59.2]} 2. g3 {[%clk 0:02:57.3]}
2... e6 {[%clk 0:02:59.7]} 3. Bg2 {[%clk 0:02:56.3]} 3... c5 {[%clk 0:03:00.3]}
4. O-O {[%clk 0:02:56]} 4... Nc6 {[%clk 0:02:59.7]} 5. d3 {[%clk 0:02:56.4]}
5... Bd6 {[%clk 0:02:54.4]} 6. c3 {[%clk 0:02:57.3]} 6... Nge7 {[%clk
0:02:54.8]} 7. a3 {[%clk 0:02:58]} 7... O-O {[%clk 0:02:54]} 8. b4 {[%clk
0:02:58.2]} 8... b6 {[%clk 0:02:50.9]} 9. Nbd2 {[%clk 0:02:57.5]} 9... Bb7
{[%clk 0:02:50.8]} 10. Bb2 {[%clk 0:02:57.3]} 10... e5 {[%clk 0:02:36.9]} 11. e3
{[%clk 0:02:54.8]} 11... Qd7 {[%clk 0:02:33.3]} 12. Qb3 {[%clk 0:02:54.7]} 12...
Rad8 {[%clk 0:02:25.7]} 13. Rad1 {[%clk 0:02:34.1]} 13... Bb8 {[%clk 0:02:08.5]}
14. Qa2 {[%clk 0:02:23.8]} 14... h6 {[%clk 0:02:07.2]} 15. bxc5 {[%clk
0:02:18.8]} 15... bxc5 {[%clk 0:02:07]} 16. e4 {[%clk 0:02:19.2]} 16... d4
{[%clk 0:02:04.9]} 17. cxd4 {[%clk 0:02:19.4]} 17... cxd4 {[%clk 0:02:01.4]} 18.
Nc4 {[%clk 0:02:18.3]} 18... Rc8 {[%clk 0:01:59.1]} 19. Rb1 {[%clk 0:02:17.7]}
19... Qe6 {[%clk 0:01:57.4]} 20. Qa1 {[%clk 0:02:15.2]} 20... Ba6 {[%clk
0:01:55.4]} 21. Nfd2 {[%clk 0:02:11.2]} 21... Rfd8 {[%clk 0:01:25.5]} 22. Rfc1
{[%clk 0:02:10.6]} 22... Rc7 {[%clk 0:01:17.9]} 23. Bf1 {[%clk 0:02:09.6]} 23...
Nc8 {[%clk 0:01:17.6]} 24. a4 {[%clk 0:02:09.7]} 24... Nd6 {[%clk 0:01:12.9]}
25. Nxd6 {[%clk 0:02:05.7]} 25... Qxd6 {[%clk 0:01:13.8]} 26. Ba3 {[%clk
0:02:06.6]} 26... Qe6 {[%clk 0:01:13.3]} 27. Rc5 {[%clk 0:01:30.3]} 27... Rcc8
{[%clk 0:01:09.2]} 28. Rbc1 {[%clk 0:01:22.8]} 28... Bb7 {[%clk 0:01:09.5]} 29.
Rb5 {[%clk 0:01:20.9]} 29... Ba6 {[%clk 0:00:59.3]} 30. Rbc5 {[%clk 0:01:20.1]}
30... Bb7 {[%clk 0:00:45]} 31. Nc4 {[%clk 0:01:14.5]} 31... Ne7 {[%clk
0:00:39.9]} 32. Qb2 {[%clk 0:00:59.6]} 32... Rxc5 {[%clk 0:00:34.9]} 33. Bxc5
{[%clk 0:01:00.5]} 33... Ba6 {[%clk 0:00:34.4]} 34. h4 {[%clk 0:00:50.5]} 34...
Rc8 {[%clk 0:00:34.1]} 35. Bxe7 {[%clk 0:00:45]} 35... Qxe7 {[%clk 0:00:30.5]}
36. Bh3 {[%clk 0:00:45.2]} 36... Rf8 {[%clk 0:00:22]} 37. Qb3 {[%clk 0:00:22.1]}
37... Bd6 {[%clk 0:00:21.6]} 38. Na5 {[%clk 0:00:20.3]} 38... Rb8 {[%clk
0:00:20.5]} 39. Qd5 {[%clk 0:00:20.4]} 39... Bb7 {[%clk 0:00:18.3]} 40. Nxb7
{[%clk 0:00:19.9]} 40... Rxb7 {[%clk 0:00:19.2]} 41. Rc8+ {[%clk 0:00:19.4]}
41... Kh7 {[%clk 0:00:19.5]} 42. h5 {[%clk 0:00:19.6]} 42... Rb8 {[%clk
0:00:09]} 43. Bf5+ {[%clk 0:00:19.3]} 43... g6 {[%clk 0:00:09]} 44. hxg6+ {[%clk
0:00:19.9]} 44... Kg7 {[%clk 0:00:09.6]} 45. Rc6 {[%clk 0:00:17.7]} 45... Rd8
{[%clk 0:00:08.1]} 46. gxf7 {[%clk 0:00:18.2]} 46... h5 {[%clk 0:00:07.2]} 47.
Kg2 {[%clk 0:00:13.3]} 47... h4 {[%clk 0:00:07.5]} 48. gxh4 {[%clk 0:00:13.2]}
48... Qf6 {[%clk 0:00:06.7]} 49. Qe6 {[%clk 0:00:12.4]} 49... Qxe6 {[%clk
0:00:03.5]} 50. Bxe6 {[%clk 0:00:13.3]} 50... Kf6 {[%clk 0:00:02.7]} 51. Bd5
{[%clk 0:00:13.8]} 51... Ke7 {[%clk 0:00:03]} 52. Ra6 {[%clk 0:00:13.8]} 52...
Rd7 {[%clk 0:00:02.1]} 53. Kf3 {[%clk 0:00:12.7]} 53... Rc7 {[%clk 0:00:01.7]}
54. Kg4 {[%clk 0:00:13]} 54... Rd7 {[%clk 0:00:01.4]} 55. Kf5 {[%clk 0:00:13.4]}
55... Bb8 {[%clk 0:00:01.5]} 56. Re6+ {[%clk 0:00:12.6]} 56... Kf8 {[%clk
0:00:01.7]} 57. Re8+ {[%clk 0:00:12.5]} 1-0

[Event "*** SCC Grand Prix: Titled Tuesday Blitz"]
[Site "Chess.com"]
[Date "2020.07.14"]
[Round "3"]
[White "Khazieva_Elza"]
[Black "Michaelson_11"]
[Result "1-0"]
[WhiteElo "2332"]
[BlackElo "2108"]
[TimeControl "180+1"]
[EndTime "10:29:39 PDT"]
[Termination "Khazieva_Elza won on time"]

1. e4 {[%clk 0:03:00.9]} 1... c5 {[%clk 0:02:59.2]} 2. Nf3 {[%clk 0:03:00.9]}
2... Nc6 {[%clk 0:02:59.8]} 3. d3 {[%clk 0:03:01.3]} 3... g6 {[%clk 0:02:59.1]}
4. g3 {[%clk 0:03:01.6]} 4... Bg7 {[%clk 0:02:58.7]} 5. Bg2 {[%clk 0:03:02.2]}
5... e6 {[%clk 0:02:59.1]} 6. O-O {[%clk 0:03:02.5]} 6... Nge7 {[%clk 0:03:00]}
7. Re1 {[%clk 0:03:02.5]} 7... d6 {[%clk 0:02:59]} 8. c3 {[%clk 0:03:02.7]} 8...
e5 {[%clk 0:02:55.3]} 9. Na3 {[%clk 0:02:54.2]} 9... O-O {[%clk 0:02:54.1]} 10.
Nc4 {[%clk 0:02:39.5]} 10... b5 {[%clk 0:02:53.1]} 11. Ne3 {[%clk 0:02:39]}
11... Be6 {[%clk 0:02:52.6]} 12. Ng5 {[%clk 0:02:30.8]} 12... Bd7 {[%clk
0:02:51.2]} 13. Nd5 {[%clk 0:02:27.9]} 13... h6 {[%clk 0:02:48.2]} 14. Nf3
{[%clk 0:02:21.9]} 14... Nxd5 {[%clk 0:02:46]} 15. exd5 {[%clk 0:02:22]} 15...
Ne7 {[%clk 0:02:45.7]} 16. d4 {[%clk 0:02:08]} 16... cxd4 {[%clk 0:02:27]} 17.
cxd4 {[%clk 0:02:08.9]} 17... Bg4 {[%clk 0:02:27.4]} 18. dxe5 {[%clk 0:02:03.5]}
18... dxe5 {[%clk 0:02:25.1]} 19. h3 {[%clk 0:01:54.9]} 19... Bxf3 {[%clk
0:02:18.8]} 20. Qxf3 {[%clk 0:01:55.8]} 20... Qd6 {[%clk 0:02:11.6]} 21. Be3
{[%clk 0:01:37.6]} 21... f5 {[%clk 0:02:08.8]} 22. Red1 {[%clk 0:01:29.8]} 22...
Rfd8 {[%clk 0:02:02.6]} 23. Rac1 {[%clk 0:01:18.9]} 23... e4 {[%clk 0:01:54.3]}
24. Qe2 {[%clk 0:01:18.9]} 24... Nxd5 {[%clk 0:01:54.1]} 25. Qxb5 {[%clk
0:01:14]} 25... Kh7 {[%clk 0:01:33]} 26. Bf1 {[%clk 0:00:48.6]} 26... Rab8
{[%clk 0:01:22.1]} 27. Qa5 {[%clk 0:00:43.5]} 27... Qe5 {[%clk 0:00:29.7]} 28.
Bd4 {[%clk 0:00:39.3]} 28... Qe6 {[%clk 0:00:06.2]} 29. Bxg7 {[%clk 0:00:37.4]}
29... e3 {[%clk 0:00:06.3]} 30. Qxa7 {[%clk 0:00:25.7]} 30... exf2+ {[%clk
0:00:04]} 31. Qxf2 {[%clk 0:00:16.2]} 31... Kxg7 {[%clk 0:00:03.2]} 32. Qd4+
{[%clk 0:00:16.3]} 32... Kh7 {[%clk 0:00:02.2]} 33. Bc4 {[%clk 0:00:15.9]} 33...
Qe4 {[%clk 0:00:01.3]} 34. Qxe4 {[%clk 0:00:15.5]} 34... fxe4 {[%clk 0:00:02.2]}
35. Rxd5 {[%clk 0:00:15]} 35... Rxd5 {[%clk 0:00:01.9]} 36. Bxd5 {[%clk
0:00:15.9]} 36... Rxb2 {[%clk 0:00:02.8]} 37. Rc7+ {[%clk 0:00:12.5]} 37... Kh8
{[%clk 0:00:03]} 38. a4 {[%clk 0:00:12.5]} 38... e3 {[%clk 0:00:03.3]} 39. Re7
{[%clk 0:00:11.2]} 39... e2 {[%clk 0:00:02.5]} 40. Kf2 {[%clk 0:00:10.4]} 40...
Rd2 {[%clk 0:00:02.6]} 41. Bf3 {[%clk 0:00:09]} 41... Ra2 {[%clk 0:00:01.7]} 42.
Bc6 {[%clk 0:00:07.5]} 42... Ra3 {[%clk 0:00:01.1]} 43. Rxe2 {[%clk 0:00:06.6]}
43... Kg7 {[%clk 0:00:02]} 44. Re6 {[%clk 0:00:06.1]} 44... g5 {[%clk
0:00:01.5]} 45. Re3 {[%clk 0:00:06]} 45... Ra2+ {[%clk 0:00:01.4]} 46. Kf3
{[%clk 0:00:06.4]} 46... Ra1 {[%clk 0:00:01.5]} 47. Bd5 {[%clk 0:00:06.2]} 47...
Kf6 {[%clk 0:00:01.8]} 48. Rb3 {[%clk 0:00:05.6]} 48... Kg7 {[%clk 0:00:01.4]}
49. Rb6 {[%clk 0:00:04.9]} 1-0